Workbook

Sheet Instructions

Sheet Meta data_sheet
A1: Ambient Monitoring Station | B1: Details | D1: Ambient Monitoring Results | E1: Details
A2: Location | B2: Maules Creek | D2: PM2.5 monitoring start (dd/mm/yyyy hh:mm) | E2: 2023-08-01
A3: Easting | B3: =VLOOKUP($B$2,'Meta data_lookup'!$A$2:$D$5,2,FALSE) -> 225302 | D3: PM2.5 monitoring end | E3: 2023-09-01
A4: Northing | B4: =VLOOKUP($B$2,'Meta data_lookup'!$A$2:$D$5,3,FALSE) -> 6623037 | D4: PM2.5 monitoring period (h) | E4: =(E3-E2)*24 -> 744
A5: Site elevation (m) | B5: =VLOOKUP($B$2,'Meta data_lookup'!$A$2:$D$5,4,FALSE) -> ND | D5: Number of valid PM2.5 results | E5: =COUNTIF('Raw data_sheet'!G2:G673,"Valid") -> 654
A6: Description of surrounding land use | B6: Agriculture/Mining | D6: Proportion of valid PM2.5 results (%) | E6: =E5/E4 -> 0.8790322581
A7: Typical sources impacting on the site | B7: Agriculture/Mining/Unsealed Roads | D7: PM10 monitoring start (dd/mm/yyyy hh:mm) | E7: 2023-08-01
A8: Site compliance with AS/NZS 3580.1.1:2007 | B8: Yes | D8: PM10 monitoring end | E8: 2023-09-01
A9: PM2.5 method compliance with AS/NZS 3580.9.13:2013 | B9: Yes | D9: PM10 monitoring period (h) | E9: =(E8-E7)*24 -> 744
A10: PM2.5 instrument make | B10: Thermo Scientific | D10: Number of valid PM10 results | E10: =COUNTIF('Raw data_sheet'!J2:J673,"Valid") -> 659
A11: PM2.5 instrument model | B11: 1405DF | D11: Proportion of valid PM10 results (%) | E11: =E10/E9 -> 0.8857526882
A12: PM2.5 instrument intake height (m) | B12: 3.5
A13: PM10 method compliance with AS 3580.9.8-2008 | B13: No*
A14: PM10 instrument make | B14: Thermo Scientific
A15: PM10 instrument model | B15: 1405DF
A16: PM10 instrument intake height (m) | B16: 3.5
A17: *The 1405DF TEOM used at this site measures PM10 indirectly rather than directly. The unit does however meet the intent of AS 3580.9.8-2008, and this method has been accredited by the USEPA. It is considered scientifically robust and is used extensively throughout NSW with EPA's knowledge and informal acceptance.

Sheet Meta data_lookup
A1: Location | B1: Easting | C1: Northing | D1: Site elevation (m)
A2: Maules Creek | B2: 225302 | C2: 6623037 | D2: ND
A3: Breeza | B3: 237993 | C3: 6542606 | D3: ND
A4: Will-gai | B4: 231804 | C4: 6596392 | D4: ND
A5: Werris Creek | B5: 276783 | C5: 6528734 | D5: ND

Sheet Raw data_sheet
A1: Year | B1: Month | C1: Day | D1: Hour | E1: Date and time | F1: PM2.5_hourly | G1: PM2.5_Data_Status | H1: PM2.5_24hr_rolling_average | I1: PM10_hourly | J1: PM10_Data_Status | K1: PM10_24hr_rolling_average | L1: Cause of data invalidity, if applicable | M1: Detailed comments | N1: PM2.5_hourly_valid_plot | O1: PM2.5_24hr_rolling_ave_valid_plot | P1: PM10_hourly_valid_plot | Q1: PM10_24hr_rolling_ave_valid_plot | R1: PM10_hourly_valid_plot_series | S1: PM10_24hr_rolling_average_valid_plot_series | T1: PM2.5_hourly_valid_plot_series | U1: PM2.5_24hr_rolling_average_valid_plot_series
A2: 2023 | B2: 8 | C2: 1 | D2: 0 | E2: =DATE(A2,B2,C2)+TIME(D2,0,0) -> 45139 | F2: 3.4 | G2: Valid | H2: 0.92375 | I2: 5.14 | J2: Valid | K2: 6.720833333 | N2: =IF(G2="Valid", F2, NA()) -> 3.4 | O2: =IF(G2="Valid", H2, NA()) -> 0.92375 | P2: =IF(J2="Valid", I2, NA()) -> 5.14 | Q2: =IF(J2="Valid", K2, NA()) -> 6.720833333 | R2: 5.14 | S2: 6.720833333 | T2: 3.4 | U2: 0.92375
A3: =A2 -> 2023 | B3: 8 | C3: =C2 -> 1 | D3: =IF(D2=23,0,D2+1) -> 1 | E3: =E2+0.0416666666666666 -> 45139.04167 | F3: 3.35 | G3: Valid | H3: 1.050416667 | I3: 5.8 | J3: Valid | K3: 6.775833333 | N3: =IF(G3="Valid", F3, NA()) -> 3.35 | O3: =IF(G3="Valid", H3, NA()) -> 1.050416667 | P3: 5.8 | Q3: 6.775833333 | R3: 5.8 | S3: 6.775833333 | T3: 3.35 | U3: 1.050416667
A4: =A3 -> 2023 | B4: 8 | C4: =C3 -> 1 | D4: =IF(D3=23,0,D3+1) -> 2 | E4: =E3+0.0416666666666666 -> 45139.08333 | F4: 1.08 | G4: Valid | H4: 1.0875 | I4: 2.83 | J4: Valid | K4: 6.717083333 | N4: 1.08 | O4: 1.0875 | P4: 2.83 | Q4: 6.717083333 | R4: 2.83 | S4: 6.717083333 | T4: 1.08 | U4: 1.0875
A5: 2023 | B5: 8 | C5: 1 | D5: 3 | E5: 45139.125 | F5: 6.42 | G5: Valid | H5: 1.287083333 | I5: 8.26 | J5: Valid | K5: 6.862083333 | N5: 6.42 | O5: 1.287083333 | P5: 8.26 | Q5: 6.862083333 | R5: 8.26 | S5: 6.862083333 | T5: 6.42 | U5: 1.287083333
A6: 2023 | B6: 8 | C6: 1 | D6: 4 | E6: 45139.16667 | F6: 7.13 | G6: Valid | H6: 1.40375 | I6: 8.5 | J6: Valid | K6: 6.933333333 | N6: 7.13 | O6: 1.40375 | P6: 8.5 | Q6: 6.933333333 | R6: 8.5 | S6: 6.933333333 | T6: 7.13 | U6: 1.40375
A7: 2023 | B7: 8 | C7: 1 | D7: 5 | E7: 45139.20833 | F7: 1.98 | G7: Valid | H7: 1.462083333 | I7: 3.82 | J7: Valid | K7: 6.949166667 | N7: 1.98 | O7: 1.462083333 | P7: 3.82 | Q7: 6.949166667 | R7: 3.82 | S7: 6.949166667 | T7: 1.98 | U7: 1.462083333
A8: 2023 | B8: 8 | C8: 1 | D8: 6 | E8: 45139.25 | F8: 2.49 | G8: Valid | H8: 1.619583333 | I8: 4.37 | J8: Valid | K8: 7.04875 | N8: 2.49 | O8: 1.619583333 | P8: 4.37 | Q8: 7.04875 | R8: 4.37 | S8: 7.04875 | T8: 2.49 | U8: 1.619583333
A9: 2023 | B9: 8 | C9: 1 | D9: 7 | E9: 45139.29167 | F9: -1.16 | G9: Valid | H9: 1.530416667 | I9: 0.72 | J9: Valid | K9: 6.93375 | N9: -1.16 | O9: 1.530416667 | P9: 0.72 | Q9: 6.93375 | R9: 0.72 | S9: 6.93375 | T9: -1.16 | U9: 1.530416667
A10: 2023 | B10: 8 | C10: 1 | D10: 8 | E10: 45139.33333 | F10: 0.49 | G10: Valid | H10: 1.577916667 | I10: 2.28 | J10: Valid | K10: 6.955416667 | N10: 0.49 | O10: 1.577916667 | P10: 2.28 | Q10: 6.955416667 | R10: 2.28 | S10: 6.955416667 | T10: 0.49 | U10: 1.577916667
A11: 2023 | B11: 8 | C11: 1 | D11: 9 | E11: 45139.375 | F11: -0.52 | G11: Valid | H11: 1.561666667 | I11: 3.38 | J11: Valid | K11: 6.9525 | N11: -0.52 | O11: 1.561666667 | P11: 3.38 | Q11: 6.9525 | R11: 3.38 | S11: 6.9525 | T11: -0.52 | U11: 1.561666667
A12: 2023 | B12: 8 | C12: 1 | D12: 10 | E12: 45139.41667 | F12: 2.07 | G12: Valid | H12: 1.687083333 | I12: 5.04 | J12: Valid | K12: 6.864583333 | N12: 2.07 | O12: 1.687083333 | P12: 5.04 | Q12: 6.864583333 | R12: 5.04 | S12: 6.864583333 | T12: 2.07 | U12: 1.687083333
A13: 2023 | B13: 8 | C13: 1 | D13: 11 | E13: 45139.45833 | F13: -0.84 | G13: Valid | H13: 1.630416667 | I13: 2.18 | J13: Valid | K13: 6.419166667 | N13: -0.84 | O13: 1.630416667 | P13: 2.18 | Q13: 6.419166667 | R13: 2.18 | S13: 6.419166667 | T13: -0.84 | U13: 1.630416667
A14: 2023 | B14: 8 | C14: 1 | D14: 12 | E14: 45139.5 | F14: 0.44 | G14: Valid | H14: 1.63 | I14: 4.8 | J14: Valid | K14: 6.194166667 | N14: 0.44 | O14: 1.63 | P14: 4.8 | Q14: 6.194166667 | R14: 4.8 | S14: 6.194166667 | T14: 0.44 | U14: 1.63
A15: 2023 | B15: 8 | C15: 1 | D15: 13 | E15: 45139.54167 | F15: 1.89 | G15: Valid | H15: 1.71875 | I15: 22.41 | J15: Valid | K15: 6.811666667 | N15: 1.89 | O15: 1.71875 | P15: 22.41 | Q15: 6.811666667 | R15: 22.41 | S15: 6.811666667 | T15: 1.89 | U15: 1.71875
A16: 2023 | B16: 8 | C16: 1 | D16: 14 | E16: 45139.58333 | F16: 1.88 | G16: Valid | H16: 1.8425 | I16: 23.29 | J16: Valid | K16: 7.702916667 | N16: 1.88 | O16: 1.8425 | P16: 23.29 | Q16: 7.702916667 | R16: 23.29 | S16: 7.702916667 | T16: 1.88 | U16: 1.8425
A17: 2023 | B17: 8 | C17: 1 | D17: 15 | E17: 45139.625 | F17: 2.88 | G17: Valid | H17: 2.0275 | I17: 22.82 | J17: Valid | K17: 8.6175 | N17: 2.88 | O17: 2.0275 | P17: 22.82 | Q17: 8.6175 | R17: 22.82 | S17: 8.6175 | T17: 2.88 | U17: 2.0275
A18: 2023 | B18: 8 | C18: 1 | D18: 16 | E18: 45139.66667 | F18: 1.9 | G18: Valid | H18: 2.126666667 | I18: 21.14 | J18: Valid | K18: 9.318333333 | N18: 1.9 | O18: 2.126666667 | P18: 21.14 | Q18: 9.318333333 | R18: 21.14 | S18: 9.318333333 | T18: 1.9 | U18: 2.126666667
A19: 2023 | B19: 8 | C19: 1 | D19: 17 | E19: 45139.70833 | F19: 2.72 | G19: Valid | H19: 2.152083333 | I19: 20.78 | J19: Valid | K19: 9.690416667 | N19: 2.72 | O19: 2.152083333 | P19: 20.78 | Q19: 9.690416667 | R19: 20.78 | S19: 9.690416667 | T19: 2.72 | U19: 2.152083333
A20: 2023 | B20: 8 | C20: 1 | D20: 18 | E20: 45139.75 | F20: 4.13 | G20: Valid | H20: 2.336666667 | I20: 18.09 | J20: Valid | K20: 10.21416667 | N20: 4.13 | O20: 2.336666667 | P20: 18.09 | Q20: 10.21416667 | R20: 18.09 | S20: 10.21416667 | T20: 4.13 | U20: 2.336666667
A21: 2023 | B21: 8 | C21: 1 | D21: 19 | E21: 45139.79167 | F21: 1.68 | G21: Valid | H21: 2.124166667 | I21: 29.66 | J21: Valid | K21: 10.25333333 | N21: 1.68 | O21: 2.124166667 | P21: 29.66 | Q21: 10.25333333 | R21: 29.66 | S21: 10.25333333 | T21: 1.68 | U21: 2.124166667
A22: 2023 | B22: 8 | C22: 1 | D22: 20 | E22: 45139.83333 | F22: 3.65 | G22: Valid | H22: 2.200416667 | I22: 20.62 | J22: Valid | K22: 10.64958333 | N22: 3.65 | O22: 2.200416667 | P22: 20.62 | Q22: 10.64958333 | R22: 20.62 | S22: 10.64958333 | T22: 3.65 | U22: 2.200416667
A23: 2023 | B23: 8 | C23: 1 | D23: 21 | E23: 45139.875 | F23: 1.62 | G23: Valid | H23: 2.215833333 | I23: 14.6 | J23: Valid | K23: 10.99458333 | N23: 1.62 | O23: 2.215833333 | P23: 14.6 | Q23: 10.99458333 | R23: 14.6 | S23: 10.99458333 | T23: 1.62 | U23: 2.215833333
A24: 2023 | B24: 8 | C24: 1 | D24: 22 | E24: 45139.91667 | F24: -0.12 | G24: Valid | H24: 2.174166667 | I24: 4.97 | J24: Valid | K24: 10.90666667 | N24: -0.12 | O24: 2.174166667 | P24: 4.97 | Q24: 10.90666667 | R24: 4.97 | S24: 10.90666667 | T24: -0.12 | U24: 2.174166667
A25: 2023 | B25: 8 | C25: =C24 -> 1 | D25: 23 | E25: 45139.95833 | F25: 1.44 | G25: Valid | H25: 2.083333333 | I25: 4.28 | J25: Valid | K25: 10.82416667 | N25: 1.44 | O25: 2.083333333 | P25: 4.28 | Q25: 10.82416667 | R25: 4.28 | S25: 10.82416667 | T25: 1.44 | U25: 2.083333333
A26: 2023 | B26: 8 | C26: =C2+1 -> 2 | D26: 0 | E26: 45140 | F26: 2.18 | G26: Valid | H26: 2.0325 | I26: 5.41 | J26: Valid | K26: 10.83541667 | N26: 2.18 | O26: 2.0325 | P26: 5.41 | Q26: 10.83541667 | R26: 5.41 | S26: 10.83541667 | T26: 2.18 | U26: 2.0325
A27: 2023 | B27: 8 | C27: =C3+1 -> 2 | D27: 1 | E27: 45140.04167 | F27: 2.08 | G27: Valid | H27: 1.979583333 | I27: 5.37 | J27: Valid | K27: 10.8175 | N27: 2.08 | O27: 1.979583333 | P27: 5.37 | Q27: 10.8175 | R27: 5.37 | S27: 10.8175 | T27: 2.08 | U27: 1.979583333
A28: 2023 | B28: 8 | C28: 2 | D28: 2 | E28: 45140.08333 | F28: 3.76 | G28: Valid | H28: 2.09125 | I28: 6.93 | J28: Valid | K28: 10.98833333 | N28: 3.76 | O28: 2.09125 | P28: 6.93 | Q28: 10.98833333 | R28: 6.93 | S28: 10.98833333 | T28: 3.76 | U28: 2.09125
A29: 2023 | B29: 8 | C29: 2 | D29: 3 | E29: 45140.125 | F29: -0.77 | G29: Valid | H29: 1.791666667 | I29: 2.47 | J29: Valid | K29: 10.74708333 | N29: -0.77 | O29: 1.791666667 | P29: 2.47 | Q29: 10.74708333 | R29: 2.47 | S29: 10.74708333 | T29: -0.77 | U29: 1.791666667
A30: 2023 | B30: 8 | C30: 2 | D30: 4 | E30: 45140.16667 | F30: 3.65 | G30: Valid | H30: 1.646666667 | I30: 6.64 | J30: Valid | K30: 10.66958333 | N30: 3.65 | O30: 1.646666667 | P30: 6.64 | Q30: 10.66958333 | R30: 6.64 | S30: 10.66958333 | T30: 3.65 | U30: 1.646666667
A31: 2023 | B31: 8 | C31: 2 | D31: 5 | E31: 45140.20833 | F31: 3.68 | G31: Valid | H31: 1.7175 | I31: 7.39 | J31: Valid | K31: 10.81833333 | N31: 3.68 | O31: 1.7175 | P31: 7.39 | Q31: 10.81833333 | R31: 7.39 | S31: 10.81833333 | T31: 3.68 | U31: 1.7175
A32: 2023 | B32: 8 | C32: 2 | D32: 6 | E32: 45140.25 | F32: 9.25 | G32: Valid | H32: 1.999166667 | I32: 12.12 | J32: Valid | K32: 11.14125 | N32: 9.25 | O32: 1.999166667 | P32: 12.12 | Q32: 11.14125 | R32: 12.12 | S32: 11.14125 | T32: 9.25 | U32: 1.999166667
A33: 2023 | B33: 8 | C33: 2 | D33: 7 | E33: 45140.29167 | F33: 1.31 | G33: Valid | H33: 2.102083333 | I33: 5.56 | J33: Valid | K33: 11.34291667 | N33: 1.31 | O33: 2.102083333 | P33: 5.56 | Q33: 11.34291667 | R33: 5.56 | S33: 11.34291667 | T33: 1.31 | U33: 2.102083333
A34: 2023 | B34: 8 | C34: 2 | D34: 8 | E34: 45140.33333 | F34: 2.37 | G34: Valid | H34: 2.180416667 | I34: 6.65 | J34: Valid | K34: 11.525 | N34: 2.37 | O34: 2.180416667 | P34: 6.65 | Q34: 11.525 | R34: 6.65 | S34: 11.525 | T34: 2.37 | U34: 2.180416667
A35: 2023 | B35: 8 | C35: 2 | D35: 9 | E35: 45140.375 | F35: 3.63 | G35: Valid | H35: 2.353333333 | I35: 8.75 | J35: Valid | K35: 11.74875 | N35: 3.63 | O35: 2.353333333 | P35: 8.75 | Q35: 11.74875 | R35: 8.75 | S35: 11.74875 | T35: 3.63 | U35: 2.353333333
A36: 2023 | B36: 8 | C36: 2 | D36: 10 | E36: 45140.41667 | F36: 0.13 | G36: Valid | H36: 2.2725 | I36: 5.88 | J36: Valid | K36: 11.78375 | N36: 0.13 | O36: 2.2725 | P36: 5.88 | Q36: 11.78375 | R36: 5.88 | S36: 11.78375 | T36: 0.13 | U36: 2.2725
A37: 2023 | B37: 8 | C37: 2 | D37: 11 | E37: 45140.45833 | F37: -1.43 | G37: Valid | H37: 2.247916667 | I37: 3.74 | J37: Valid | K37: 11.84875 | N37: -1.43 | O37: 2.247916667 | P37: 3.74 | Q37: 11.84875 | R37: 3.74 | S37: 11.84875 | T37: -1.43 | U37: 2.247916667
A38: 2023 | B38: 8 | C38: 2 | D38: 12 | E38: 45140.5 | F38: -2 | G38: Valid | H38: 2.14625 | I38: 1.43 | J38: Valid | K38: 11.70833333 | N38: -2 | O38: 2.14625 | P38: 1.43 | Q38: 11.70833333 | R38: 1.43 | S38: 11.70833333 | T38: -2 | U38: 2.14625
A39: 2023 | B39: 8 | C39: 2 | D39: 13 | E39: 45140.54167 | F39: -0.5 | G39: Valid | H39: 2.046666667 | I39: 3.86 | J39: Valid | K39: 10.93541667 | N39: -0.5 | O39: 2.046666667 | P39: 3.86 | Q39: 10.93541667 | R39: 3.86 | S39: 10.93541667 | T39: -0.5 | U39: 2.046666667
A40: 2023 | B40: 8 | C40: 2 | D40: 14 | E40: 45140.58333 | F40: -2.57 | G40: Valid | H40: 1.86125 | I40: 0.86 | J40: Valid | K40: 10.00083333 | N40: -2.57 | O40: 1.86125 | P40: 0.86 | Q40: 10.00083333 | R40: 0.86 | S40: 10.00083333 | T40: -2.57 | U40: 1.86125
A41: 2023 | B41: 8 | C41: 2 | D41: 15 | E41: 45140.625 | F41: -3.61 | G41: Valid | H41: 1.590833333 | I41: 1.72 | J41: Valid | K41: 9.121666667 | N41: -3.61 | O41: 1.590833333 | P41: 1.72 | Q41: 9.121666667 | R41: 1.72 | S41: 9.121666667 | T41: -3.61 | U41: 1.590833333
A42: 2023 | B42: 8 | C42: 2 | D42: 16 | E42: 45140.66667 | F42: -2.23 | G42: Valid | H42: 1.41875 | I42: 6.44 | J42: Valid | K42: 8.509166667 | N42: -2.23 | O42: 1.41875 | P42: 6.44 | Q42: 8.509166667 | R42: 6.44 | S42: 8.509166667 | T42: -2.23 | U42: 1.41875
A43: 2023 | B43: 8 | C43: 2 | D43: 17 | E43: 45140.70833 | F43: -2.93 | G43: Valid | H43: 1.183333333 | I43: 16.83 | J43: Valid | K43: 8.344583333 | N43: -2.93 | O43: 1.183333333 | P43: 16.83 | Q43: 8.344583333 | R43: 16.83 | S43: 8.344583333 | T43: -2.93 | U43: 1.183333333
A44: 2023 | B44: 8 | C44: 2 | D44: 18 | E44: 45140.75 | F44: -4.68 | G44: Valid | H44: 0.81625 | I44: 1.61 | J44: Valid | K44: 7.657916667 | N44: -4.68 | O44: 0.81625 | P44: 1.61 | Q44: 7.657916667 | R44: 1.61 | S44: 7.657916667 | T44: -4.68 | U44: 0.81625
A45: 2023 | B45: 8 | C45: 2 | D45: 19 | E45: 45140.79167 | F45: -7.74 | G45: Valid | H45: 0.42375 | I45: 0.43 | J45: Valid | K45: 6.44 | N45: -7.74 | O45: 0.42375 | P45: 0.43 | Q45: 6.44 | R45: 0.43 | S45: 6.44 | T45: -7.74 | U45: 0.42375
A46: 2023 | B46: 8 | C46: 2 | D46: 20 | E46: 45140.83333 | F46: -6.81 | G46: Valid | H46: -0.01208333333 | I46: 0.2 | J46: Valid | K46: 5.589166667 | N46: -6.81 | O46: =IF(G46="Valid", H46, NA()) -> -0.01208333333 | P46: =IF(J46="Valid", I46, NA()) -> 0.2 | Q46: 5.589166667 | R46: 0.2 | S46: 5.589166667 | T46: -6.81 | U46: -0.01208333333
A47: 2023 | B47: 8 | C47: 2 | D47: 21 | E47: 45140.875 | F47: -6.66 | G47: Valid | H47: -0.3570833333 | I47: -1.03 | J47: Valid | K47: 4.937916667 | N47: -6.66 | O47: -0.3570833333 | P47: -1.03 | Q47: 4.937916667 | R47: -1.03 | S47: 4.937916667 | T47: -6.66 | U47: -0.3570833333
A48: 2023 | B48: 8 | C48: 2 | D48: 22 | E48: 45140.91667 | F48: -7.15 | G48: Valid | H48: -0.65 | I48: -1.24 | J48: Valid | K48: 4.679166667 | N48: -7.15 | O48: -0.65 | P48: -1.24 | Q48: 4.679166667 | R48: -1.24 | S48: 4.679166667 | T48: -7.15 | U48: -0.65
A49: 2023 | B49: 8 | C49: 2 | D49: 23 | E49: 45140.95833 | F49: -9.05 | G49: Valid | H49: -1.087083333 | I49: -3.78 | J49: Valid | K49: 4.343333333 | N49: -9.05 | O49: -1.087083333 | P49: -3.78 | Q49: 4.343333333 | R49: -3.78 | S49: 4.343333333 | T49: -9.05 | U49: -1.087083333
A50: 2023 | B50: 8 | C50: 3 | D50: 0 | E50: 45141 | F50: -6.72 | G50: Valid | H50: -1.457916667 | I50: -2.08 | J50: Valid | K50: 4.03125 | N50: -6.72 | O50: -1.457916667 | P50: -2.08 | Q50: 4.03125 | R50: -2.08 | S50: 4.03125 | T50: -6.72 | U50: -1.457916667
A51: 2023 | B51: 8 | C51: 3 | D51: 1 | E51: 45141.04167 | F51: -6.56 | G51: Valid | H51: -1.817916667 | I51: -2.11 | J51: Valid | K51: 3.719583333 | N51: -6.56 | O51: -1.817916667 | P51: -2.11 | Q51: 3.719583333 | R51: -2.11 | S51: 3.719583333 | T51: -6.56 | U51: -1.817916667
A52: 2023 | B52: 8 | C52: 3 | D52: 2 | E52: 45141.08333 | F52: -7.12 | G52: Valid | H52: -2.27125 | I52: -3.06 | J52: Valid | K52: 3.303333333 | N52: -7.12 | O52: -2.27125 | P52: -3.06 | Q52: 3.303333333 | R52: -3.06 | S52: 3.303333333 | T52: -7.12 | U52: -2.27125
A53: 2023 | B53: 8 | C53: 3 | D53: 3 | E53: 45141.125 | F53: -9.27 | G53: Valid | H53: -2.625416667 | I53: -4.86 | J53: Valid | K53: 2.997916667 | N53: -9.27 | O53: -2.625416667 | P53: -4.86 | Q53: 2.997916667 | R53: -4.86 | S53: 2.997916667 | T53: -9.27 | U53: -2.625416667
A54: 2023 | B54: 8 | C54: 3 | D54: 4 | E54: 45141.16667 | F54: -6.17 | G54: Valid | H54: -3.034583333 | I54: -2.62 | J54: Valid | K54: 2.612083333 | N54: -6.17 | O54: -3.034583333 | P54: -2.62 | Q54: 2.612083333 | R54: -2.62 | S54: 2.612083333 | T54: -6.17 | U54: -3.034583333
A55: 2023 | B55: 8 | C55: 3 | D55: 5 | E55: 45141.20833 | F55: -5.71 | G55: Valid | H55: -3.425833333 | I55: -0.13 | J55: Valid | K55: 2.29875 | N55: -5.71 | O55: -3.425833333 | P55: -0.13 | Q55: 2.29875 | R55: -0.13 | S55: 2.29875 | T55: -5.71 | U55: -3.425833333
A56: 2023 | B56: 8 | C56: 3 | D56: 6 | E56: 45141.25 | F56: -4.05 | G56: Valid | H56: -3.98 | I56: 1.18 | J56: Valid | K56: 1.842916667 | N56: -4.05 | O56: -3.98 | P56: 1.18 | Q56: 1.842916667 | R56: 1.18 | S56: 1.842916667 | T56: -4.05 | U56: -3.98
A57: 2023 | B57: 8 | C57: 3 | D57: 7 | E57: 45141.29167 | F57: -7 | G57: Valid | H57: -4.32625 | I57: -2.28 | J57: Valid | K57: 1.51625 | N57: -7 | O57: -4.32625 | P57: -2.28 | Q57: 1.51625 | R57: -2.28 | S57: 1.51625 | T57: -7 | U57: -4.32625
A58: 2023 | B58: 8 | C58: 3 | D58: 8 | E58: 45141.33333 | F58: -5.87 | G58: Valid | H58: -4.669583333 | I58: -1.71 | J58: Valid | K58: 1.167916667 | N58: -5.87 | O58: -4.669583333 | P58: -1.71 | Q58: 1.167916667 | R58: -1.71 | S58: 1.167916667 | T58: -5.87 | U58: -4.669583333
A59: 2023 | B59: 8 | C59: 3 | D59: 9 | E59: 45141.375 | F59: -9.39 | G59: Valid | H59: -5.212083333 | I59: -4.56 | J59: Valid | K59: 0.6133333333 | N59: -9.39 | O59: -5.212083333 | P59: -4.56 | Q59: 0.6133333333 | R59: -4.56 | S59: 0.6133333333 | T59: -9.39 | U59: -5.212083333
A60: 2023 | B60: 8 | C60: 3 | D60: 10 | E60: 45141.41667 | G60: Invalid | H60: -5.444347826 | I60: -9.41 | J60: Valid | K60: -0.02375 | L60: Calibration Error | M60: High negatives removed | P60: -9.41 | Q60: -0.02375 | R60: -9.41 | S60: -0.02375
A61: 2023 | B61: 8 | C61: 3 | D61: 11 | E61: 45141.45833 | G61: Invalid | H61: -5.626818182 | I61: -8.67 | J61: Valid | K61: -0.5408333333 | L61: Calibration Error | M61: High negatives removed | P61: -8.67 | Q61: -0.5408333333 | R61: -8.67 | S61: -0.5408333333
A62: 2023 | B62: 8 | C62: 3 | D62: 12 | E62: 45141.5 | G62: Invalid | H62: -5.79952381 | J62: Invalid | K62: -0.6265217391 | L62: Calibration Error | M62: High negatives removed
A63: 2023 | B63: 8 | C63: 3 | D63: 13 | E63: 45141.54167 | G63: Invalid | H63: -6.0645 | I63: -4.54 | J63: Valid | K63: -0.9917391304 | L63: Calibration Error | M63: High negatives removed | P63: -4.54 | Q63: -0.9917391304 | R63: -4.54 | S63: -0.9917391304
A64: 2023 | B64: 8 | C64: 3 | D64: 14 | E64: 45141.58333 | G64: Invalid | H64: -6.248421053 | I64: -1.03 | J64: Valid | K64: -1.073913043 | L64: Calibration Error | M64: High negatives removed | P64: -1.03 | Q64: -1.073913043 | R64: -1.03 | S64: -1.073913043
A65: 2023 | B65: 8 | C65: 3 | D65: 15 | E65: 45141.625 | G65: Invalid | H65: -6.395 | I65: -0.09 | J65: Valid | K65: -1.152608696 | L65: Calibration Error | M65: High negatives removed | P65: -0.09 | Q65: -1.152608696 | R65: -0.09 | S65: -1.152608696
A66: 2023 | B66: 8 | C66: 3 | D66: 16 | E66: 45141.66667 | G66: Invalid | H66: =NA() ->  | J66: Invalid | K66: -1.497727273 | L66: Calibration Error | M66: System Reset & <18hr of valid 1hr data for 24-hr rolling average | N66: =IF(G66="Valid", F66, NA()) ->  | O66: =IF(G66="Valid", H66, NA()) ->  | P66: =IF(J66="Valid", I66, NA()) ->  | Q66: =IF(J66="Valid", K66, NA()) -> 
A67: 2023 | B67: 8 | C67: 3 | D67: 17 | E67: 45141.70833 | G67: Invalid | H67: =NA() ->  | J67: Invalid | K67: -2.37047619 | L67: Calibration Error | M67: System Reset & <18hr of valid 1hr data for 24-hr rolling average
A68: =A67 -> 2023 | B68: 8 | C68: 3 | D68: =IF(D67=23,0,D67+1) -> 18 | E68: =E67+0.0416666666666666 -> 45141.75 | G68: Invalid | H68: =NA() ->  | J68: Invalid | K68: -2.5695 | L68: Calibration Error | M68: System Reset & <18hr of valid 1hr data for 24-hr rolling average
A69: 2023 | B69: 8 | C69: 3 | D69: 19 | E69: 45141.79167 | G69: Invalid | H69: =NA() ->  | J69: Invalid | K69: -2.727368421 | L69: Calibration Error | M69: System Reset & <18hr of valid 1hr data for 24-hr rolling average
A70: 2023 | B70: 8 | C70: 3 | D70: 20 | E70: 45141.83333 | G70: Invalid | H70: =NA() ->  | J70: Invalid | K70: -2.89 | L70: Calibration Error | M70: System Reset & <18hr of valid 1hr data for 24-hr rolling average
A71: 2023 | B71: 8 | C71: 3 | D71: 21 | E71: 45141.875 | F71: 2.03 | G71: Valid | H71: =NA() ->  | I71: 9.44 | J71: Valid | K71: -2.308333333 | L71: Calibration Error | M71: <18hr of valid 1hr data for 24-hr rolling average | N71: 2.03 | P71: 9.44 | Q71: -2.308333333 | R71: 9.44 | S71: -2.308333333 | T71: 2.03
A72: 2023 | B72: 8 | C72: 3 | D72: 22 | E72: 45141.91667 | F72: 3.71 | G72: Valid | H72: =NA() ->  | I72: 8.36 | J72: Valid | K72: -1.775 | L72: Calibration Error | M72: <18hr of valid 1hr data for 24-hr rolling average | N72: 3.71 | P72: 8.36 | Q72: -1.775 | R72: 8.36 | S72: -1.775 | T72: 3.71
A73: 2023 | B73: 8 | C73: 3 | D73: 23 | E73: 45141.95833 | F73: -0.85 | G73: Valid | H73: =NA() ->  | I73: 3.4 | J73: Valid | K73: -1.376111111 | L73: Calibration Error | M73: <18hr of valid 1hr data for 24-hr rolling average | N73: -0.85 | P73: 3.4 | Q73: -1.376111111 | R73: 3.4 | S73: -1.376111111 | T73: -0.85
A74: 2023 | B74: 8 | C74: 4 | D74: 0 | E74: 45142 | F74: 2.5 | G74: Valid | H74: =NA() ->  | I74: 6.24 | J74: Valid | K74: -0.9138888889 | L74: Calibration Error | M74: <18hr of valid 1hr data for 24-hr rolling average | N74: 2.5 | P74: 6.24 | Q74: -0.9138888889 | R74: 6.24 | S74: -0.9138888889 | T74: 2.5
A75: 2023 | B75: 8 | C75: 4 | D75: 1 | E75: 45142.04167 | F75: 2.36 | G75: Valid | H75: =NA() ->  | I75: 5.43 | J75: Valid | K75: -0.495 | L75: Calibration Error | M75: <18hr of valid 1hr data for 24-hr rolling average | N75: 2.36 | P75: 5.43 | Q75: -0.495 | R75: 5.43 | S75: -0.495 | T75: 2.36
A76: 2023 | B76: 8 | C76: 4 | D76: 2 | E76: 45142.08333 | F76: -0.79 | G76: Valid | H76: =NA() ->  | I76: 1.34 | J76: Valid | K76: -0.2505555556 | L76: Calibration Error | M76: <18hr of valid 1hr data for 24-hr rolling average | N76: -0.79 | P76: 1.34 | Q76: -0.2505555556 | R76: 1.34 | S76: -0.2505555556 | T76: -0.79
A77: 2023 | B77: 8 | C77: 4 | D77: 3 | E77: 45142.125 | F77: 0.39 | G77: Valid | H77: =NA() ->  | I77: 3.19 | J77: Valid | K77: 0.1966666667 | L77: Calibration Error | M77: <18hr of valid 1hr data for 24-hr rolling average | N77: 0.39 | P77: 3.19 | Q77: 0.1966666667 | R77: 3.19 | S77: 0.1966666667 | T77: 0.39
A78: 2023 | B78: 8 | C78: 4 | D78: 4 | E78: 45142.16667 | F78: 3.16 | G78: Valid | H78: =NA() ->  | I78: 5.27 | J78: Valid | K78: 0.635 | L78: Calibration Error | M78: <18hr of valid 1hr data for 24-hr rolling average | N78: 3.16 | P78: 5.27 | Q78: 0.635 | R78: 5.27 | S78: 0.635 | T78: 3.16
A79: 2023 | B79: 8 | C79: 4 | D79: 5 | E79: 45142.20833 | F79: 1.23 | G79: Valid | H79: =NA() ->  | I79: 3.15 | J79: Valid | K79: 0.8172222222 | L79: Calibration Error | M79: <18hr of valid 1hr data for 24-hr rolling average | N79: 1.23 | P79: 3.15 | Q79: 0.8172222222 | R79: 3.15 | S79: 0.8172222222 | T79: 1.23
A80: 2023 | B80: 8 | C80: 4 | D80: 6 | E80: 45142.25 | F80: 1.97 | G80: Valid | H80: =NA() ->  | I80: 2.16 | J80: Valid | K80: 0.8716666667 | L80: Calibration Error | M80: <18hr of valid 1hr data for 24-hr rolling average | N80: 1.97 | P80: 2.16 | Q80: 0.8716666667 | R80: 2.16 | S80: 0.8716666667 | T80: 1.97
A81: 2023 | B81: 8 | C81: 4 | D81: 7 | E81: 45142.29167 | F81: 2.33 | G81: Valid | H81: =NA() ->  | I81: 4.35 | J81: Valid | K81: 1.24 | L81: Calibration Error | M81: <18hr of valid 1hr data for 24-hr rolling average | N81: 2.33 | P81: 4.35 | Q81: 1.24 | R81: 4.35 | S81: 1.24 | T81: 2.33
A82: 2023 | B82: 8 | C82: 4 | D82: 8 | E82: 45142.33333 | F82: 2.86 | G82: Valid | H82: =NA() ->  | I82: 5.49 | J82: Valid | K82: 1.64 | L82: Calibration Error | M82: <18hr of valid 1hr data for 24-hr rolling average | N82: 2.86 | P82: 5.49 | Q82: 1.64 | R82: 5.49 | S82: 1.64 | T82: 2.86
A83: 2023 | B83: 8 | C83: 4 | D83: 9 | E83: 45142.375 | F83: -2.9 | G83: Valid | H83: =NA() ->  | I83: -0.25 | J83: Valid | K83: 1.879444444 | L83: Calibration Error | M83: <18hr of valid 1hr data for 24-hr rolling average | N83: -2.9 | P83: -0.25 | Q83: 1.879444444 | R83: -0.25 | S83: 1.879444444 | T83: -2.9
A84: 2023 | B84: 8 | C84: 4 | D84: 10 | E84: 45142.41667 | F84: 3.23 | G84: Valid | H84: =NA() ->  | I84: 7.56 | J84: Valid | K84: 2.822222222 | L84: Calibration Error | M84: <18hr of valid 1hr data for 24-hr rolling average | N84: 3.23 | P84: 7.56 | Q84: 2.822222222 | R84: 7.56 | S84: 2.822222222 | T84: 3.23
A85: 2023 | B85: 8 | C85: 4 | D85: 11 | E85: 45142.45833 | F85: 2.14 | G85: Valid | H85: =NA() ->  | I85: 12.19 | J85: Valid | K85: 3.981111111 | L85: Calibration Error | M85: <18hr of valid 1hr data for 24-hr rolling average | N85: 2.14 | P85: 12.19 | Q85: 3.981111111 | R85: 12.19 | S85: 3.981111111 | T85: 2.14
A86: 2023 | B86: 8 | C86: 4 | D86: 12 | E86: 45142.5 | F86: 1.21 | G86: Valid | H86: =NA() ->  | I86: 7.37 | J86: Valid | K86: 4.159473684 | L86: Calibration Error | M86: <18hr of valid 1hr data for 24-hr rolling average | N86: 1.21 | P86: 7.37 | Q86: 4.159473684 | R86: 7.37 | S86: 4.159473684 | T86: 1.21
A87: 2023 | B87: 8 | C87: 4 | D87: 13 | E87: 45142.54167 | F87: -0.35 | G87: Valid | H87: =NA() ->  | I87: 4.05 | J87: Valid | K87: 4.611578947 | L87: Calibration Error | M87: <18hr of valid 1hr data for 24-hr rolling average | N87: -0.35 | P87: 4.05 | Q87: 4.611578947 | R87: 4.05 | S87: 4.611578947 | T87: -0.35
A88: 2023 | B88: 8 | C88: 4 | D88: 14 | E88: 45142.58333 | F88: 3.98 | G88: Valid | H88: 1.567222222 | I88: 9.17 | J88: Valid | K88: 5.148421053 | N88: 3.98 | O88: 1.567222222 | P88: 9.17 | Q88: 5.148421053 | R88: 9.17 | S88: 5.148421053 | T88: 3.98 | U88: 1.567222222
A89: 2023 | B89: 8 | C89: 4 | D89: 15 | E89: 45142.625 | F89: 6.03 | G89: Valid | H89: 1.802105263 | I89: 13.12 | J89: Valid | K89: 5.843684211 | N89: 6.03 | O89: 1.802105263 | P89: 13.12 | Q89: 5.843684211 | R89: 13.12 | S89: 5.843684211 | T89: 6.03 | U89: 1.802105263
A90: 2023 | B90: 8 | C90: 4 | D90: 16 | E90: 45142.66667 | F90: 2.14 | G90: Valid | H90: 1.819 | I90: 10.65 | J90: Valid | K90: 6.084 | N90: 2.14 | O90: 1.819 | P90: 10.65 | Q90: 6.084 | R90: 10.65 | S90: 6.084 | T90: 2.14 | U90: 1.819
A91: 2023 | B91: 8 | C91: =C67+1 -> 4 | D91: 17 | E91: 45142.70833 | F91: -0.77 | G91: Valid | H91: 1.695714286 | I91: 6.17 | J91: Valid | K91: 6.088095238 | N91: -0.77 | O91: 1.695714286 | P91: 6.17 | Q91: 6.088095238 | R91: 6.17 | S91: 6.088095238 | T91: -0.77 | U91: 1.695714286
A92: 2023 | B92: 8 | C92: 4 | D92: 18 | E92: 45142.75 | F92: 1.74 | G92: Valid | H92: 1.697727273 | I92: 8.09 | J92: Valid | K92: 6.179090909 | N92: 1.74 | O92: 1.697727273 | P92: 8.09 | Q92: 6.179090909 | R92: 8.09 | S92: 6.179090909 | T92: 1.74 | U92: 1.697727273
A93: 2023 | B93: 8 | C93: 4 | D93: 19 | E93: 45142.79167 | F93: 3.2 | G93: Valid | H93: 1.763043478 | I93: 14.95 | J93: Valid | K93: 6.560434783 | N93: 3.2 | O93: 1.763043478 | P93: 14.95 | Q93: 6.560434783 | R93: 14.95 | S93: 6.560434783 | T93: 3.2 | U93: 1.763043478
A94: 2023 | B94: 8 | C94: 4 | D94: 20 | E94: 45142.83333 | F94: 4.56 | G94: Valid | H94: 1.879583333 | I94: 12.13 | J94: Valid | K94: 6.7925 | N94: 4.56 | O94: 1.879583333 | P94: 12.13 | Q94: 6.7925 | R94: 12.13 | S94: 6.7925 | T94: 4.56 | U94: 1.879583333
A95: 2023 | B95: 8 | C95: 4 | D95: 21 | E95: 45142.875 | F95: 3.59 | G95: Valid | H95: 1.944583333 | I95: 11.36 | J95: Valid | K95: 6.8725 | N95: 3.59 | O95: 1.944583333 | P95: 11.36 | Q95: 6.8725 | R95: 11.36 | S95: 6.8725 | T95: 3.59 | U95: 1.944583333
A96: 2023 | B96: 8 | C96: 4 | D96: 22 | E96: 45142.91667 | F96: 2.09 | G96: Valid | H96: 1.877083333 | I96: 13.67 | J96: Valid | K96: 7.09375 | N96: 2.09 | O96: 1.877083333 | P96: 13.67 | Q96: 7.09375 | R96: 13.67 | S96: 7.09375 | T96: 2.09 | U96: 1.877083333
A97: 2023 | B97: 8 | C97: 4 | D97: 23 | E97: 45142.95833 | F97: 5.16 | G97: Valid | H97: 2.1275 | I97: 9.93 | J97: Valid | K97: 7.365833333 | N97: 5.16 | O97: 2.1275 | P97: 9.93 | Q97: 7.365833333 | R97: 9.93 | S97: 7.365833333 | T97: 5.16 | U97: 2.1275
A98: 2023 | B98: 8 | C98: 5 | D98: 0 | E98: 45143 | F98: 2.51 | G98: Valid | H98: 2.127916667 | I98: 7.18 | J98: Valid | K98: 7.405 | N98: 2.51 | O98: 2.127916667 | P98: 7.18 | Q98: 7.405 | R98: 7.18 | S98: 7.405 | T98: 2.51 | U98: 2.127916667
A99: 2023 | B99: 8 | C99: 5 | D99: 1 | E99: 45143.04167 | F99: 0.18 | G99: Valid | H99: 2.037083333 | I99: 5.49 | J99: Valid | K99: 7.4075 | N99: 0.18 | O99: 2.037083333 | P99: 5.49 | Q99: 7.4075 | R99: 5.49 | S99: 7.4075 | T99: 0.18 | U99: 2.037083333
A100: 2023 | B100: 8 | C100: 5 | D100: 2 | E100: 45143.08333 | F100: 1.7 | G100: Valid | H100: 2.140833333 | I100: 5.12 | J100: Valid | K100: 7.565 | N100: 1.7 | O100: 2.140833333 | P100: 5.12 | Q100: 7.565 | R100: 5.12 | S100: 7.565 | T100: 1.7 | U100: 2.140833333
A101: 2023 | B101: 8 | C101: 5 | D101: 3 | E101: 45143.125 | F101: 0.36 | G101: Valid | H101: 2.139583333 | I101: 3.75 | J101: Valid | K101: 7.588333333 | N101: 0.36 | O101: 2.139583333 | P101: 3.75 | Q101: 7.588333333 | R101: 3.75 | S101: 7.588333333 | T101: 0.36 | U101: 2.139583333
A102: 2023 | B102: 8 | C102: 5 | D102: 4 | E102: 45143.16667 | F102: 4.61 | G102: Valid | H102: 2.2 | I102: 5.98 | J102: Valid | K102: 7.617916667 | N102: 4.61 | O102: 2.2 | P102: 5.98 | Q102: 7.617916667 | R102: 5.98 | S102: 7.617916667 | T102: 4.61 | U102: 2.2
A103: 2023 | B103: 8 | C103: 5 | D103: 5 | E103: 45143.20833 | F103: 3.43 | G103: Valid | H103: 2.291666667 | I103: 4.58 | J103: Valid | K103: 7.6775 | N103: 3.43 | O103: 2.291666667 | P103: 4.58 | Q103: 7.6775 | R103: 4.58 | S103: 7.6775 | T103: 3.43 | U103: 2.291666667
A104: 2023 | B104: 8 | C104: 5 | D104: 6 | E104: 45143.25 | F104: 5.3 | G104: Valid | H104: 2.430416667 | I104: 7.42 | J104: Valid | K104: 7.896666667 | N104: 5.3 | O104: 2.430416667 | P104: 7.42 | Q104: 7.896666667 | R104: 7.42 | S104: 7.896666667 | T104: 5.3 | U104: 2.430416667
A105: 2023 | B105: 8 | C105: 5 | D105: 7 | E105: 45143.29167 | F105: 4.08 | G105: Valid | H105: 2.503333333 | I105: 5.8 | J105: Valid | K105: 7.957083333 | N105: 4.08 | O105: 2.503333333 | P105: 5.8 | Q105: 7.957083333 | R105: 5.8 | S105: 7.957083333 | T105: 4.08 | U105: 2.503333333
A106: 2023 | B106: 8 | C106: 5 | D106: 8 | E106: 45143.33333 | F106: -0.7 | G106: Valid | H106: 2.355 | I106: 1.12 | J106: Valid | K106: 7.775 | N106: -0.7 | O106: 2.355 | P106: 1.12 | Q106: 7.775 | R106: 1.12 | S106: 7.775 | T106: -0.7 | U106: 2.355
A107: 2023 | B107: 8 | C107: 5 | D107: 9 | E107: 45143.375 | F107: 3.3 | G107: Valid | H107: 2.613333333 | I107: 7.76 | J107: Valid | K107: 8.10875 | N107: 3.3 | O107: 2.613333333 | P107: 7.76 | Q107: 8.10875 | R107: 7.76 | S107: 8.10875 | T107: 3.3 | U107: 2.613333333
A108: 2023 | B108: 8 | C108: 5 | D108: 10 | E108: 45143.41667 | F108: 5.18 | G108: Valid | H108: 2.694583333 | I108: 13.09 | J108: Valid | K108: 8.339166667 | N108: 5.18 | O108: 2.694583333 | P108: 13.09 | Q108: 8.339166667 | R108: 13.09 | S108: 8.339166667 | T108: 5.18 | U108: 2.694583333
A109: 2023 | B109: 8 | C109: 5 | D109: 11 | E109: 45143.45833 | F109: 7.35 | G109: Valid | H109: 2.911666667 | I109: 24.38 | J109: Valid | K109: 8.847083333 | N109: 7.35 | O109: 2.911666667 | P109: 24.38 | Q109: 8.847083333 | R109: 24.38 | S109: 8.847083333 | T109: 7.35 | U109: 2.911666667
A110: 2023 | B110: 8 | C110: 5 | D110: 12 | E110: 45143.5 | F110: 7.29 | G110: Valid | H110: 3.165 | I110: 14.66 | J110: Valid | K110: 9.150833333 | N110: 7.29 | O110: 3.165 | P110: 14.66 | Q110: 9.150833333 | R110: 14.66 | S110: 9.150833333 | T110: 7.29 | U110: 3.165
A111: 2023 | B111: 8 | C111: 5 | D111: 13 | E111: 45143.54167 | F111: 6.26 | G111: Valid | H111: 3.440416667 | I111: 16.01 | J111: Valid | K111: 9.649166667 | N111: 6.26 | O111: 3.440416667 | P111: 16.01 | Q111: 9.649166667 | R111: 16.01 | S111: 9.649166667 | T111: 6.26 | U111: 3.440416667
A112: 2023 | B112: 8 | C112: 5 | D112: 14 | E112: 45143.58333 | F112: 3.89 | G112: Valid | H112: 3.436666667 | I112: 8.34 | J112: Valid | K112: 9.614583333 | N112: 3.89 | O112: 3.436666667 | P112: 8.34 | Q112: 9.614583333 | R112: 8.34 | S112: 9.614583333 | T112: 3.89 | U112: 3.436666667
A113: 2023 | B113: 8 | C113: 5 | D113: 15 | E113: 45143.625 | F113: 2.58 | G113: Valid | H113: 3.292916667 | I113: 5.8 | J113: Valid | K113: 9.309583333 | N113: 2.58 | O113: 3.292916667 | P113: 5.8 | Q113: 9.309583333 | R113: 5.8 | S113: 9.309583333 | T113: 2.58 | U113: 3.292916667
A114: 2023 | B114: 8 | C114: 5 | D114: 16 | E114: 45143.66667 | F114: 4.37 | G114: Valid | H114: 3.385833333 | I114: 9.3 | J114: Valid | K114: 9.253333333 | N114: 4.37 | O114: 3.385833333 | P114: 9.3 | Q114: 9.253333333 | R114: 9.3 | S114: 9.253333333 | T114: 4.37 | U114: 3.385833333
A115: 2023 | B115: 8 | C115: 5 | D115: 17 | E115: 45143.70833 | F115: 4.3 | G115: Valid | H115: 3.597083333 | I115: 14.36 | J115: Valid | K115: 9.594583333 | N115: 4.3 | O115: 3.597083333 | P115: 14.36 | Q115: 9.594583333 | R115: 14.36 | S115: 9.594583333 | T115: 4.3 | U115: 3.597083333
A116: 2023 | B116: 8 | C116: 5 | D116: 18 | E116: 45143.75 | F116: 6.44 | G116: Valid | H116: 3.792916667 | I116: 15.47 | J116: Valid | K116: 9.902083333 | N116: 6.44 | O116: 3.792916667 | P116: 15.47 | Q116: 9.902083333 | R116: 15.47 | S116: 9.902083333 | T116: 6.44 | U116: 3.792916667
A117: 2023 | B117: 8 | C117: 5 | D117: 19 | E117: 45143.79167 | F117: 6.17 | G117: Valid | H117: 3.916666667 | I117: 20.27 | J117: Valid | K117: 10.12375 | N117: 6.17 | O117: 3.916666667 | P117: 20.27 | Q117: 10.12375 | R117: 20.27 | S117: 10.12375 | T117: 6.17 | U117: 3.916666667
A118: 2023 | B118: 8 | C118: 5 | D118: 20 | E118: 45143.83333 | F118: 3.75 | G118: Valid | H118: 3.882916667 | I118: 14.37 | J118: Valid | K118: 10.21708333 | N118: 3.75 | O118: 3.882916667 | P118: 14.37 | Q118: 10.21708333 | R118: 14.37 | S118: 10.21708333 | T118: 3.75 | U118: 3.882916667
A119: 2023 | B119: 8 | C119: 5 | D119: 21 | E119: 45143.875 | F119: 6.73 | G119: Valid | H119: 4.01375 | I119: 20.85 | J119: Valid | K119: 10.6125 | N119: 6.73 | O119: 4.01375 | P119: 20.85 | Q119: 10.6125 | R119: 20.85 | S119: 10.6125 | T119: 6.73 | U119: 4.01375
A120: 2023 | B120: 8 | C120: 5 | D120: 22 | E120: 45143.91667 | F120: 4.94 | G120: Valid | H120: 4.1325 | I120: 12.46 | J120: Valid | K120: 10.56208333 | N120: 4.94 | O120: 4.1325 | P120: 12.46 | Q120: 10.56208333 | R120: 12.46 | S120: 10.56208333 | T120: 4.94 | U120: 4.1325
A121: 2023 | B121: 8 | C121: 5 | D121: 23 | E121: 45143.95833 | F121: 3.39 | G121: Valid | H121: 4.05875 | I121: 10.44 | J121: Valid | K121: 10.58333333 | N121: 3.39 | O121: 4.05875 | P121: 10.44 | Q121: 10.58333333 | R121: 10.44 | S121: 10.58333333 | T121: 3.39 | U121: 4.05875
A122: 2023 | B122: 8 | C122: 6 | D122: 0 | E122: 45144 | F122: 4.99 | G122: Valid | H122: 4.162083333 | I122: 11.78 | J122: Valid | K122: 10.775 | N122: 4.99 | O122: 4.162083333 | P122: 11.78 | Q122: 10.775 | R122: 11.78 | S122: 10.775 | T122: 4.99 | U122: 4.162083333
A123: 2023 | B123: 8 | C123: 6 | D123: 1 | E123: 45144.04167 | F123: 11.22 | G123: Valid | H123: 4.622083333 | I123: 25.03 | J123: Valid | K123: 11.58916667 | N123: 11.22 | O123: 4.622083333 | P123: 25.03 | Q123: 11.58916667 | R123: 25.03 | S123: 11.58916667 | T123: 11.22 | U123: 4.622083333
A124: 2023 | B124: 8 | C124: 6 | D124: 2 | E124: 45144.08333 | F124: 7.1 | G124: Valid | H124: 4.847083333 | I124: 12.98 | J124: Valid | K124: 11.91666667 | N124: 7.1 | O124: 4.847083333 | P124: 12.98 | Q124: 11.91666667 | R124: 12.98 | S124: 11.91666667 | T124: 7.1 | U124: 4.847083333
A125: 2023 | B125: 8 | C125: 6 | D125: 3 | E125: 45144.125 | F125: 5.53 | G125: Valid | H125: 5.0625 | I125: 9.2 | J125: Valid | K125: 12.14375 | N125: 5.53 | O125: 5.0625 | P125: 9.2 | Q125: 12.14375 | R125: 9.2 | S125: 12.14375 | T125: 5.53 | U125: 5.0625
A126: 2023 | B126: 8 | C126: 6 | D126: 4 | E126: 45144.16667 | F126: 6.38 | G126: Valid | H126: 5.13625 | I126: 8.2 | J126: Valid | K126: 12.23625 | N126: 6.38 | O126: 5.13625 | P126: 8.2 | Q126: 12.23625 | R126: 8.2 | S126: 12.23625 | T126: 6.38 | U126: 5.13625
A127: 2023 | B127: 8 | C127: 6 | D127: 5 | E127: 45144.20833 | F127: 7.78 | G127: Valid | H127: 5.3175 | I127: 9.43 | J127: Valid | K127: 12.43833333 | N127: 7.78 | O127: 5.3175 | P127: 9.43 | Q127: 12.43833333 | R127: 9.43 | S127: 12.43833333 | T127: 7.78 | U127: 5.3175
A128: 2023 | B128: 8 | C128: 6 | D128: 6 | E128: 45144.25 | F128: 7.24 | G128: Valid | H128: 5.398333333 | I128: 9.72 | J128: Valid | K128: 12.53416667 | N128: 7.24 | O128: 5.398333333 | P128: 9.72 | Q128: 12.53416667 | R128: 9.72 | S128: 12.53416667 | T128: 7.24 | U128: 5.398333333
A129: 2023 | B129: 8 | C129: 6 | D129: 7 | E129: 45144.29167 | F129: 6.24 | G129: Valid | H129: 5.488333333 | I129: 7.72 | J129: Valid | K129: 12.61416667 | N129: 6.24 | O129: 5.488333333 | P129: 7.72 | Q129: 12.61416667 | R129: 7.72 | S129: 12.61416667 | T129: 6.24 | U129: 5.488333333
A130: 2023 | B130: 8 | C130: 6 | D130: 8 | E130: 45144.33333 | F130: 4.56 | G130: Valid | H130: 5.7075 | I130: 7.18 | J130: Valid | K130: 12.86666667 | N130: =IF(G130="Valid", F130, NA()) -> 4.56 | O130: =IF(G130="Valid", H130, NA()) -> 5.7075 | P130: =IF(J130="Valid", I130, NA()) -> 7.18 | Q130: =IF(J130="Valid", K130, NA()) -> 12.86666667 | R130: 7.18 | S130: 12.86666667 | T130: 4.56 | U130: 5.7075
A131: 2023 | B131: 8 | C131: 6 | D131: 9 | E131: 45144.375 | F131: 7.01 | G131: Valid | H131: 5.862083333 | I131: 9.35 | J131: Valid | K131: 12.93291667 | N131: 7.01 | O131: 5.862083333 | P131: 9.35 | Q131: 12.93291667 | R131: 9.35 | S131: 12.93291667 | T131: 7.01 | U131: 5.862083333
A132: =A131 -> 2023 | B132: 8 | C132: 6 | D132: =IF(D131=23,0,D131+1) -> 10 | E132: =E131+0.0416666666666666 -> 45144.41667 | F132: 5.29 | G132: Valid | H132: 5.866666667 | I132: 9.27 | J132: Valid | K132: 12.77375 | N132: 5.29 | O132: 5.866666667 | P132: 9.27 | Q132: 12.77375 | R132: 9.27 | S132: 12.77375 | T132: 5.29 | U132: 5.866666667
A133: 2023 | B133: 8 | C133: 6 | D133: 11 | E133: 45144.45833 | F133: 6.38 | G133: Valid | H133: 5.82625 | I133: 18.7 | J133: Valid | K133: 12.53708333 | N133: 6.38 | O133: 5.82625 | P133: 18.7 | Q133: 12.53708333 | R133: 18.7 | S133: 12.53708333 | T133: 6.38 | U133: 5.82625
A134: 2023 | B134: 8 | C134: 6 | D134: 12 | E134: 45144.5 | F134: 7.5 | G134: Valid | H134: 5.835 | I134: 24.98 | J134: Valid | K134: 12.96708333 | N134: 7.5 | O134: 5.835 | P134: 24.98 | Q134: 12.96708333 | R134: 24.98 | S134: 12.96708333 | T134: 7.5 | U134: 5.835
A135: 2023 | B135: 8 | C135: 6 | D135: 13 | E135: 45144.54167 | F135: 8.04 | G135: Valid | H135: 5.909166667 | I135: 20.72 | J135: Valid | K135: 13.16333333 | N135: 8.04 | O135: 5.909166667 | P135: 20.72 | Q135: 13.16333333 | R135: 20.72 | S135: 13.16333333 | T135: 8.04 | U135: 5.909166667
A136: 2023 | B136: 8 | C136: 6 | D136: 14 | E136: 45144.58333 | F136: 5.28 | G136: Valid | H136: 5.967083333 | I136: 17.82 | J136: Valid | K136: 13.55833333 | N136: 5.28 | O136: 5.967083333 | P136: 17.82 | Q136: 13.55833333 | R136: 17.82 | S136: 13.55833333 | T136: 5.28 | U136: 5.967083333
A137: 2023 | B137: 8 | C137: 6 | D137: 15 | E137: 45144.625 | F137: 7.17 | G137: Valid | H137: 6.158333333 | I137: 10.57 | J137: Valid | K137: 13.75708333 | N137: 7.17 | O137: 6.158333333 | P137: 10.57 | Q137: 13.75708333 | R137: 10.57 | S137: 13.75708333 | T137: 7.17 | U137: 6.158333333
A138: 2023 | B138: 8 | C138: 6 | D138: 16 | E138: 45144.66667 | F138: 9.95 | G138: Valid | H138: 6.390833333 | I138: 13.91 | J138: Valid | K138: 13.94916667 | N138: 9.95 | O138: 6.390833333 | P138: 13.91 | Q138: 13.94916667 | R138: 13.91 | S138: 13.94916667 | T138: 9.95 | U138: 6.390833333
A139: 2023 | B139: 8 | C139: 6 | D139: 17 | E139: 45144.70833 | F139: 16.06 | G139: Valid | H139: 6.880833333 | I139: 22.29 | J139: Valid | K139: 14.27958333 | N139: 16.06 | O139: 6.880833333 | P139: 22.29 | Q139: 14.27958333 | R139: 22.29 | S139: 14.27958333 | T139: 16.06 | U139: 6.880833333
A140: 2023 | B140: 8 | C140: 6 | D140: 18 | E140: 45144.75 | F140: 12.58 | G140: Valid | H140: 7.136666667 | I140: 16.39 | J140: Valid | K140: 14.31791667 | N140: 12.58 | O140: 7.136666667 | P140: 16.39 | Q140: 14.31791667 | R140: 16.39 | S140: 14.31791667 | T140: 12.58 | U140: 7.136666667
A141: 2023 | B141: 8 | C141: 6 | D141: 19 | E141: 45144.79167 | F141: 3.93 | G141: Valid | H141: 7.043333333 | I141: 8.22 | J141: Valid | K141: 13.81583333 | N141: 3.93 | O141: 7.043333333 | P141: 8.22 | Q141: 13.81583333 | R141: 8.22 | S141: 13.81583333 | T141: 3.93 | U141: 7.043333333
A142: 2023 | B142: 8 | C142: 6 | D142: 20 | E142: 45144.83333 | F142: 0.57 | G142: Valid | H142: 6.910833333 | I142: 5.35 | J142: Valid | K142: 13.44 | N142: 0.57 | O142: 6.910833333 | P142: 5.35 | Q142: 13.44 | R142: 5.35 | S142: 13.44 | T142: 0.57 | U142: 6.910833333
A143: 2023 | B143: 8 | C143: 6 | D143: 21 | E143: 45144.875 | F143: 2.5 | G143: Valid | H143: 6.734583333 | I143: 9.23 | J143: Valid | K143: 12.95583333 | N143: 2.5 | O143: 6.734583333 | P143: 9.23 | Q143: 12.95583333 | R143: 9.23 | S143: 12.95583333 | T143: 2.5 | U143: 6.734583333
A144: 2023 | B144: 8 | C144: 6 | D144: 22 | E144: 45144.91667 | F144: 4.24 | G144: Valid | H144: 6.705416667 | I144: 8.23 | J144: Valid | K144: 12.77958333 | N144: 4.24 | O144: 6.705416667 | P144: 8.23 | Q144: 12.77958333 | R144: 8.23 | S144: 12.77958333 | T144: 4.24 | U144: 6.705416667
A145: 2023 | B145: 8 | C145: 6 | D145: 23 | E145: 45144.95833 | F145: 9.59 | G145: Valid | H145: 6.96375 | I145: 14.06 | J145: Valid | K145: 12.93041667 | N145: 9.59 | O145: 6.96375 | P145: 14.06 | Q145: 12.93041667 | R145: 14.06 | S145: 12.93041667 | T145: 9.59 | U145: 6.96375
A146: 2023 | B146: 8 | C146: 7 | D146: 0 | E146: 45145 | F146: 2.57 | G146: Valid | H146: 6.862916667 | I146: 6.5 | J146: Valid | K146: 12.71041667 | N146: 2.57 | O146: 6.862916667 | P146: 6.5 | Q146: 12.71041667 | R146: 6.5 | S146: 12.71041667 | T146: 2.57 | U146: 6.862916667
A147: 2023 | B147: 8 | C147: 7 | D147: 1 | E147: 45145.04167 | F147: 4.48 | G147: Valid | H147: 6.582083333 | I147: 8.38 | J147: Valid | K147: 12.01666667 | N147: 4.48 | O147: 6.582083333 | P147: 8.38 | Q147: 12.01666667 | R147: 8.38 | S147: 12.01666667 | T147: 4.48 | U147: 6.582083333
A148: 2023 | B148: 8 | C148: 7 | D148: 2 | E148: 45145.08333 | F148: 4.17 | G148: Valid | H148: 6.46 | I148: 7.87 | J148: Valid | K148: 11.80375 | N148: 4.17 | O148: 6.46 | P148: 7.87 | Q148: 11.80375 | R148: 7.87 | S148: 11.80375 | T148: 4.17 | U148: 6.46
A149: 2023 | B149: 8 | C149: 7 | D149: 3 | E149: 45145.125 | F149: 0.62 | G149: Valid | H149: 6.255416667 | I149: 3.99 | J149: Valid | K149: 11.58666667 | N149: 0.62 | O149: 6.255416667 | P149: 3.99 | Q149: 11.58666667 | R149: 3.99 | S149: 11.58666667 | T149: 0.62 | U149: 6.255416667
A150: 2023 | B150: 8 | C150: 7 | D150: 4 | E150: 45145.16667 | F150: -0.4 | G150: Valid | H150: 5.972916667 | I150: 0.57 | J150: Valid | K150: 11.26875 | N150: -0.4 | O150: 5.972916667 | P150: 0.57 | Q150: 11.26875 | R150: 0.57 | S150: 11.26875 | T150: -0.4 | U150: 5.972916667
A151: 2023 | B151: 8 | C151: 7 | D151: 5 | E151: 45145.20833 | F151: 1.15 | G151: Valid | H151: 5.696666667 | I151: 2.3 | J151: Valid | K151: 10.97166667 | N151: 1.15 | O151: 5.696666667 | P151: 2.3 | Q151: 10.97166667 | R151: 2.3 | S151: 10.97166667 | T151: 1.15 | U151: 5.696666667
A152: 2023 | B152: 8 | C152: 7 | D152: 6 | E152: 45145.25 | F152: 3.59 | G152: Valid | H152: 5.544583333 | I152: 4.44 | J152: Valid | K152: 10.75166667 | N152: 3.59 | O152: 5.544583333 | P152: 4.44 | Q152: 10.75166667 | R152: 4.44 | S152: 10.75166667 | T152: 3.59 | U152: 5.544583333
A153: 2023 | B153: 8 | C153: 7 | D153: 7 | E153: 45145.29167 | F153: 0.51 | G153: Valid | H153: 5.305833333 | I153: 2.37 | J153: Valid | K153: 10.52875 | N153: 0.51 | O153: 5.305833333 | P153: 2.37 | Q153: 10.52875 | R153: 2.37 | S153: 10.52875 | T153: 0.51 | U153: 5.305833333
A154: 2023 | B154: 8 | C154: 7 | D154: 8 | E154: 45145.33333 | F154: 0.62 | G154: Valid | H154: 5.141666667 | I154: 3.98 | J154: Valid | K154: 10.39541667 | N154: 0.62 | O154: 5.141666667 | P154: 3.98 | Q154: 10.39541667 | R154: 3.98 | S154: 10.39541667 | T154: 0.62 | U154: 5.141666667
A155: 2023 | B155: 8 | C155: =C131+1 -> 7 | D155: 9 | E155: 45145.375 | F155: 2.25 | G155: Valid | H155: 4.943333333 | I155: 5.5 | J155: Valid | K155: 10.235 | N155: 2.25 | O155: 4.943333333 | P155: 5.5 | Q155: 10.235 | R155: 5.5 | S155: 10.235 | T155: 2.25 | U155: 4.943333333
A156: 2023 | B156: 8 | C156: 7 | D156: 10 | E156: 45145.41667 | F156: 1.02 | G156: Valid | H156: 4.765416667 | I156: 3.93 | J156: Valid | K156: 10.0125 | N156: 1.02 | O156: 4.765416667 | P156: 3.93 | Q156: 10.0125 | R156: 3.93 | S156: 10.0125 | T156: 1.02 | U156: 4.765416667
A157: 2023 | B157: 8 | C157: 7 | D157: 11 | E157: 45145.45833 | F157: -0.04 | G157: Valid | H157: 4.497916667 | I157: 1.42 | J157: Valid | K157: 9.2925 | N157: -0.04 | O157: 4.497916667 | P157: 1.42 | Q157: 9.2925 | R157: 1.42 | S157: 9.2925 | T157: -0.04 | U157: 4.497916667
A158: 2023 | B158: 8 | C158: 7 | D158: 12 | E158: 45145.5 | F158: 2.71 | G158: Valid | H158: 4.298333333 | I158: 13.25 | J158: Valid | K158: 8.80375 | N158: 2.71 | O158: 4.298333333 | P158: 13.25 | Q158: 8.80375 | R158: 13.25 | S158: 8.80375 | T158: 2.71 | U158: 4.298333333
A159: 2023 | B159: 8 | C159: 7 | D159: 13 | E159: 45145.54167 | F159: 4.32 | G159: Valid | H159: 4.143333333 | I159: 20.85 | J159: Valid | K159: 8.809166667 | N159: 4.32 | O159: 4.143333333 | P159: 20.85 | Q159: 8.809166667 | R159: 20.85 | S159: 8.809166667 | T159: 4.32 | U159: 4.143333333
A160: 2023 | B160: 8 | C160: 7 | D160: 14 | E160: 45145.58333 | F160: 2.02 | G160: Valid | H160: 4.0075 | I160: 11.12 | J160: Valid | K160: 8.53 | N160: 2.02 | O160: 4.0075 | P160: 11.12 | Q160: 8.53 | R160: 11.12 | S160: 8.53 | T160: 2.02 | U160: 4.0075
A161: 2023 | B161: 8 | C161: 7 | D161: 15 | E161: 45145.625 | F161: 0.97 | G161: Valid | H161: 3.749166667 | I161: 14.87 | J161: Valid | K161: 8.709166667 | N161: 0.97 | O161: 3.749166667 | P161: 14.87 | Q161: 8.709166667 | R161: 14.87 | S161: 8.709166667 | T161: 0.97 | U161: 3.749166667
A162: 2023 | B162: 8 | C162: 7 | D162: 16 | E162: 45145.66667 | F162: 2.34 | G162: Valid | H162: 3.432083333 | I162: 17.54 | J162: Valid | K162: 8.860416667 | N162: 2.34 | O162: 3.432083333 | P162: 17.54 | Q162: 8.860416667 | R162: 17.54 | S162: 8.860416667 | T162: 2.34 | U162: 3.432083333
A163: 2023 | B163: 8 | C163: 7 | D163: 17 | E163: 45145.70833 | F163: 2.09 | G163: Valid | H163: 2.85 | I163: 14.06 | J163: Valid | K163: 8.5175 | N163: 2.09 | O163: 2.85 | P163: 14.06 | Q163: 8.5175 | R163: 14.06 | S163: 8.5175 | T163: 2.09 | U163: 2.85
A164: 2023 | B164: 8 | C164: 7 | D164: 18 | E164: 45145.75 | F164: 4.55 | G164: Valid | H164: 2.515416667 | I164: 17.22 | J164: Valid | K164: 8.552083333 | N164: 4.55 | O164: 2.515416667 | P164: 17.22 | Q164: 8.552083333 | R164: 17.22 | S164: 8.552083333 | T164: 4.55 | U164: 2.515416667
A165: 2023 | B165: 8 | C165: 7 | D165: 19 | E165: 45145.79167 | F165: 8.25 | G165: Valid | H165: 2.695416667 | I165: 53.3 | J165: Valid | K165: 10.43041667 | N165: 8.25 | O165: 2.695416667 | P165: 53.3 | Q165: 10.43041667 | R165: 53.3 | S165: 10.43041667 | T165: 8.25 | U165: 2.695416667
A166: 2023 | B166: 8 | C166: 7 | D166: 20 | E166: 45145.83333 | F166: 0.88 | G166: Valid | H166: 2.708333333 | I166: 17.54 | J166: Valid | K166: 10.93833333 | N166: 0.88 | O166: 2.708333333 | P166: 17.54 | Q166: 10.93833333 | R166: 17.54 | S166: 10.93833333 | T166: 0.88 | U166: 2.708333333
A167: 2023 | B167: 8 | C167: 7 | D167: 21 | E167: 45145.875 | F167: 4.47 | G167: Valid | H167: 2.790416667 | I167: 12.96 | J167: Valid | K167: 11.09375 | N167: 4.47 | O167: 2.790416667 | P167: 12.96 | Q167: 11.09375 | R167: 12.96 | S167: 11.09375 | T167: 4.47 | U167: 2.790416667
A168: 2023 | B168: 8 | C168: 7 | D168: 22 | E168: 45145.91667 | F168: 2.21 | G168: Valid | H168: 2.705833333 | I168: 10.31 | J168: Valid | K168: 11.18041667 | N168: 2.21 | O168: 2.705833333 | P168: 10.31 | Q168: 11.18041667 | R168: 10.31 | S168: 11.18041667 | T168: 2.21 | U168: 2.705833333
A169: 2023 | B169: 8 | C169: 7 | D169: 23 | E169: 45145.95833 | F169: 0.93 | G169: Valid | H169: 2.345 | I169: 9.39 | J169: Valid | K169: 10.98583333 | N169: 0.93 | O169: 2.345 | P169: 9.39 | Q169: 10.98583333 | R169: 9.39 | S169: 10.98583333 | T169: 0.93 | U169: 2.345
A170: 2023 | B170: 8 | C170: 8 | D170: 0 | E170: 45146 | F170: 1.88 | G170: Valid | H170: 2.31625 | I170: 4.56 | J170: Valid | K170: 10.905 | N170: 1.88 | O170: 2.31625 | P170: 4.56 | Q170: 10.905 | R170: 4.56 | S170: 10.905 | T170: 1.88 | U170: 2.31625
A171: 2023 | B171: 8 | C171: 8 | D171: 1 | E171: 45146.04167 | F171: 4.27 | G171: Valid | H171: 2.3075 | I171: 6.56 | J171: Valid | K171: 10.82916667 | N171: 4.27 | O171: 2.3075 | P171: 6.56 | Q171: 10.82916667 | R171: 6.56 | S171: 10.82916667 | T171: 4.27 | U171: 2.3075
A172: 2023 | B172: 8 | C172: 8 | D172: 2 | E172: 45146.08333 | F172: 3.68 | G172: Valid | H172: 2.287083333 | I172: 5.45 | J172: Valid | K172: 10.72833333 | N172: 3.68 | O172: 2.287083333 | P172: 5.45 | Q172: 10.72833333 | R172: 5.45 | S172: 10.72833333 | T172: 3.68 | U172: 2.287083333
A173: 2023 | B173: 8 | C173: 8 | D173: 3 | E173: 45146.125 | F173: 3.56 | G173: Valid | H173: 2.409583333 | I173: 5.34 | J173: Valid | K173: 10.78458333 | N173: 3.56 | O173: 2.409583333 | P173: 5.34 | Q173: 10.78458333 | R173: 5.34 | S173: 10.78458333 | T173: 3.56 | U173: 2.409583333
A174: 2023 | B174: 8 | C174: 8 | D174: 4 | E174: 45146.16667 | F174: 4.98 | G174: Valid | H174: 2.63375 | I174: 6.29 | J174: Valid | K174: 11.02291667 | N174: 4.98 | O174: 2.63375 | P174: 6.29 | Q174: 11.02291667 | R174: 6.29 | S174: 11.02291667 | T174: 4.98 | U174: 2.63375
A175: 2023 | B175: 8 | C175: 8 | D175: 5 | E175: 45146.20833 | F175: 4.71 | G175: Valid | H175: 2.782083333 | I175: 8.64 | J175: Valid | K175: 11.28708333 | N175: 4.71 | O175: 2.782083333 | P175: 8.64 | Q175: 11.28708333 | R175: 8.64 | S175: 11.28708333 | T175: 4.71 | U175: 2.782083333
A176: 2023 | B176: 8 | C176: 8 | D176: 6 | E176: 45146.25 | F176: 5.32 | G176: Valid | H176: 2.854166667 | I176: 13.49 | J176: Valid | K176: 11.66416667 | N176: 5.32 | O176: 2.854166667 | P176: 13.49 | Q176: 11.66416667 | R176: 13.49 | S176: 11.66416667 | T176: 5.32 | U176: 2.854166667
A177: 2023 | B177: 8 | C177: 8 | D177: 7 | E177: 45146.29167 | F177: 2.62 | G177: Valid | H177: 2.942083333 | I177: 9.08 | J177: Valid | K177: 11.94375 | N177: 2.62 | O177: 2.942083333 | P177: 9.08 | Q177: 11.94375 | R177: 9.08 | S177: 11.94375 | T177: 2.62 | U177: 2.942083333
A178: 2023 | B178: 8 | C178: 8 | D178: 8 | E178: 45146.33333 | F178: 3.15 | G178: Valid | H178: 3.0475 | I178: 6.28 | J178: Valid | K178: 12.03958333 | N178: 3.15 | O178: 3.0475 | P178: 6.28 | Q178: 12.03958333 | R178: 6.28 | S178: 12.03958333 | T178: 3.15 | U178: 3.0475
A179: 2023 | B179: 8 | C179: 8 | D179: 9 | E179: 45146.375 | F179: 3.04 | G179: Valid | H179: 3.080416667 | I179: 4.76 | J179: Valid | K179: 12.00875 | N179: 3.04 | O179: 3.080416667 | P179: 4.76 | Q179: 12.00875 | R179: 4.76 | S179: 12.00875 | T179: 3.04 | U179: 3.080416667
A180: 2023 | B180: 8 | C180: 8 | D180: 10 | E180: 45146.41667 | F180: -0.01 | G180: Valid | H180: 3.0375 | I180: 1.78 | J180: Valid | K180: 11.91916667 | N180: -0.01 | O180: 3.0375 | P180: 1.78 | Q180: 11.91916667 | R180: 1.78 | S180: 11.91916667 | T180: -0.01 | U180: 3.0375
A181: 2023 | B181: 8 | C181: 8 | D181: 11 | E181: 45146.45833 | F181: 0.82 | G181: Valid | H181: 3.073333333 | I181: 1.89 | J181: Valid | K181: 11.93875 | N181: 0.82 | O181: 3.073333333 | P181: 1.89 | Q181: 11.93875 | R181: 1.89 | S181: 11.93875 | T181: 0.82 | U181: 3.073333333
A182: 2023 | B182: 8 | C182: 8 | D182: 12 | E182: 45146.5 | F182: 2.58 | G182: Valid | H182: 3.067916667 | I182: 8.82 | J182: Valid | K182: 11.75416667 | N182: 2.58 | O182: 3.067916667 | P182: 8.82 | Q182: 11.75416667 | R182: 8.82 | S182: 11.75416667 | T182: 2.58 | U182: 3.067916667
A183: 2023 | B183: 8 | C183: 8 | D183: 13 | E183: 45146.54167 | F183: -0.07 | G183: Valid | H183: 2.885 | I183: 3.02 | J183: Valid | K183: 11.01125 | N183: -0.07 | O183: 2.885 | P183: 3.02 | Q183: 11.01125 | R183: 3.02 | S183: 11.01125 | T183: -0.07 | U183: 2.885
A184: 2023 | B184: 8 | C184: 8 | D184: 14 | E184: 45146.58333 | F184: 6.04 | G184: Valid | H184: 3.0525 | I184: 8.69 | J184: Valid | K184: 10.91 | N184: 6.04 | O184: 3.0525 | P184: 8.69 | Q184: 10.91 | R184: 8.69 | S184: 10.91 | T184: 6.04 | U184: 3.0525
A185: 2023 | B185: 8 | C185: 8 | D185: 15 | E185: 45146.625 | F185: 4.05 | G185: Valid | H185: 3.180833333 | I185: 13.15 | J185: Valid | K185: 10.83833333 | N185: 4.05 | O185: 3.180833333 | P185: 13.15 | Q185: 10.83833333 | R185: 13.15 | S185: 10.83833333 | T185: 4.05 | U185: 3.180833333
A186: 2023 | B186: 8 | C186: 8 | D186: 16 | E186: 45146.66667 | F186: -0.2 | G186: Valid | H186: 3.075 | I186: 13.32 | J186: Valid | K186: 10.6625 | N186: -0.2 | O186: 3.075 | P186: 13.32 | Q186: 10.6625 | R186: 13.32 | S186: 10.6625 | T186: -0.2 | U186: 3.075
A187: 2023 | B187: 8 | C187: 8 | D187: 17 | E187: 45146.70833 | F187: -0.55 | G187: Valid | H187: 2.965 | I187: 14.84 | J187: Valid | K187: 10.695 | N187: -0.55 | O187: 2.965 | P187: 14.84 | Q187: 10.695 | R187: 14.84 | S187: 10.695 | T187: -0.55 | U187: 2.965
A188: 2023 | B188: 8 | C188: 8 | D188: 18 | E188: 45146.75 | F188: -0.18 | G188: Valid | H188: 2.767916667 | I188: 11.31 | J188: Valid | K188: 10.44875 | N188: -0.18 | O188: 2.767916667 | P188: 11.31 | Q188: 10.44875 | R188: 11.31 | S188: 10.44875 | T188: -0.18 | U188: 2.767916667
A189: 2023 | B189: 8 | C189: 8 | D189: 19 | E189: 45146.79167 | F189: 1.45 | G189: Valid | H189: 2.484583333 | I189: 25.01 | J189: Valid | K189: 9.27 | N189: 1.45 | O189: 2.484583333 | P189: 25.01 | Q189: 9.27 | R189: 25.01 | S189: 9.27 | T189: 1.45 | U189: 2.484583333
A190: 2023 | B190: 8 | C190: 8 | D190: 20 | E190: 45146.83333 | F190: 5.16 | G190: Valid | H190: 2.662916667 | I190: 24.47 | J190: Valid | K190: 9.55875 | N190: 5.16 | O190: 2.662916667 | P190: 24.47 | Q190: 9.55875 | R190: 24.47 | S190: 9.55875 | T190: 5.16 | U190: 2.662916667
A191: 2023 | B191: 8 | C191: 8 | D191: 21 | E191: 45146.875 | F191: 2.02 | G191: Valid | H191: 2.560833333 | I191: 8.47 | J191: Valid | K191: 9.371666667 | N191: 2.02 | O191: 2.560833333 | P191: 8.47 | Q191: 9.371666667 | R191: 8.47 | S191: 9.371666667 | T191: 2.02 | U191: 2.560833333
A192: 2023 | B192: 8 | C192: 8 | D192: 22 | E192: 45146.91667 | F192: 1.61 | G192: Valid | H192: 2.535833333 | I192: 9.21 | J192: Valid | K192: 9.325833333 | N192: 1.61 | O192: 2.535833333 | P192: 9.21 | Q192: 9.325833333 | R192: 9.21 | S192: 9.325833333 | T192: 1.61 | U192: 2.535833333
A193: 2023 | B193: 8 | C193: 8 | D193: 23 | E193: 45146.95833 | F193: 2.38 | G193: Valid | H193: 2.59625 | I193: 6.16 | J193: Valid | K193: 9.19125 | N193: 2.38 | O193: 2.59625 | P193: 6.16 | Q193: 9.19125 | R193: 6.16 | S193: 9.19125 | T193: 2.38 | U193: 2.59625
A194: 2023 | B194: 8 | C194: 9 | D194: 0 | E194: 45147 | F194: -0.73 | G194: Valid | H194: 2.4875 | I194: 3.11 | J194: Valid | K194: 9.130833333 | N194: =IF(G194="Valid", F194, NA()) -> -0.73 | O194: =IF(G194="Valid", H194, NA()) -> 2.4875 | P194: =IF(J194="Valid", I194, NA()) -> 3.11 | Q194: =IF(J194="Valid", K194, NA()) -> 9.130833333 | R194: 3.11 | S194: 9.130833333 | T194: -0.73 | U194: 2.4875
A195: 2023 | B195: 8 | C195: 9 | D195: 1 | E195: 45147.04167 | F195: 1.59 | G195: Valid | H195: 2.375833333 | I195: 3.25 | J195: Valid | K195: 8.992916667 | N195: 1.59 | O195: 2.375833333 | P195: 3.25 | Q195: 8.992916667 | R195: 3.25 | S195: 8.992916667 | T195: 1.59 | U195: 2.375833333
A196: =A195 -> 2023 | B196: 8 | C196: 9 | D196: =IF(D195=23,0,D195+1) -> 2 | E196: =E195+0.0416666666666666 -> 45147.08333 | F196: 0.66 | G196: Valid | H196: 2.25 | I196: 3.29 | J196: Valid | K196: 8.902916667 | N196: 0.66 | O196: 2.25 | P196: 3.29 | Q196: 8.902916667 | R196: 3.29 | S196: 8.902916667 | T196: 0.66 | U196: 2.25
A197: 2023 | B197: 8 | C197: 9 | D197: 3 | E197: 45147.125 | F197: 1.02 | G197: Valid | H197: 2.144166667 | I197: 3.09 | J197: Valid | K197: 8.809166667 | N197: 1.02 | O197: 2.144166667 | P197: 3.09 | Q197: 8.809166667 | R197: 3.09 | S197: 8.809166667 | T197: 1.02 | U197: 2.144166667
A198: 2023 | B198: 8 | C198: 9 | D198: 4 | E198: 45147.16667 | F198: 0.35 | G198: Valid | H198: 1.95125 | I198: 1.49 | J198: Valid | K198: 8.609166667 | N198: 0.35 | O198: 1.95125 | P198: 1.49 | Q198: 8.609166667 | R198: 1.49 | S198: 8.609166667 | T198: 0.35 | U198: 1.95125
A199: 2023 | B199: 8 | C199: 9 | D199: 5 | E199: 45147.20833 | F199: 1.4 | G199: Valid | H199: 1.813333333 | I199: 2.67 | J199: Valid | K199: 8.360416667 | N199: 1.4 | O199: 1.813333333 | P199: 2.67 | Q199: 8.360416667 | R199: 2.67 | S199: 8.360416667 | T199: 1.4 | U199: 1.813333333
A200: 2023 | B200: 8 | C200: 9 | D200: 6 | E200: 45147.25 | F200: 3.89 | G200: Valid | H200: 1.75375 | I200: 5.43 | J200: Valid | K200: 8.024583333 | N200: 3.89 | O200: 1.75375 | P200: 5.43 | Q200: 8.024583333 | R200: 5.43 | S200: 8.024583333 | T200: 3.89 | U200: 1.75375
... 545 more rows

Sheet Raw data_format
A1: Parameter | B1: Format | C1: Comment | D1: Units of measure | E1: Minimum | F1: Maximum
A2: Year | B2: yyyy | C2: 4 integer format | D2: Not applicable | E2: 2015 | F2: Until reporting ceases
A3: Month | B3: mm | C3: 2 integer format | D3: Not applicable | E3: 1 | F3: 12
A4: Day | B4: dd | C4: 2 integer format | D4: Not applicable | E4: 1 | F4: 31
A5: Hour | B5: hh | C5: 2 integer format | D5: Not applicable | E5: 0 | F5: 23
A6: PM10 | B6: 0 | C6: 1 decimal place resolution | D6: µg/m3 | E6: Negative | F6: Instrument specific
A7: PM2.5 | B7: 0 | C7: 2 decimal place resolution | D7: µg/m3 | E7: Negative | F7: Instrument specific
A8: Status | B8: Text | C8: 7 character format | D8: Not applicable | E8: Valid | F8: Invalid

Sheet Sheet1
